[Event "14th BPB Limburg Open 2022"]
[Site "Maastricht"]
[Date "2022.06.05"]
[Round "5.13"]
[White "Kopylov, Michael"]
[Black "Ratsma, Midas"]
[Result "1/2-1/2"]
[ECO "D10"]
[WhiteElo "2378"]
[BlackElo "2200"]
[Annotator "TA"]
[PlyCount "74"]
[EventDate "2022.06.03"]
[EventType "swiss"]
[EventCountry "NED"]
[SourceTitle "playchess.com"]
[Source "ChessBase"]
[SourceQuality "1"]
[TimeControl "7200+15"]

{[%evp 9,74,0,-5,-16,-9,-13,0,0,0,0,0,0,0,-3,0,4,8,5,23,14,23,0,0,-72,-75,-66,-75,-70,-78,-63,-53,-35,-39,-78,-79,-70,-31,-24,-9,-6,-12,-273,-252,-260,-239,-239,-8,-4,-11,-8,0,0,0,-19,-3,-37,0,0,0,0,0,0,0,0,0,0,0]} 1. d4 {[%emt 2:00:30]} d5 {[%emt 2:00:30]} 2. c4 {[%emt 0:00:15]} e5 {[%emt 0:00:15]} 3. Nf3 {[%emt 0:00:15]} e4 {[%emt 0:00:15]} 4. Nfd2 {[%emt 0:00:15][%cal Bf3d2,Bd2b3,Bb3c5,Bc5a4][%mdl 32]} c6 {[%emt 0:00:15]} 5. Nc3 {[%emt 0:00:15]} Nf6 {[%emt 0:00:15]} 6. cxd5 {[%emt 0:00:15] D10: Slav Defence: 3 cxd5 (without early Nf3) and 3 Nc3.} cxd5 {[%emt 0:00:15]} 7. Nb3 {[%emt 0:00:15]} h6 {[%emt 0:00:15]} 8. Bf4 {[%emt 0:00:15] [#]} a6 $146 {[%emt 0:00:15]} ({Predecessor:} 8... Be6 9. e3 Bb4 10. a3 Bxc3+ 11. bxc3 Nbd7 12. a4 Rc8 13. Bd6 Rxc3 14. Bb4 Rc8 {1-0 (44) Hernando Rodrigo,J (2345)-Jedryczka,K (2315) Castelldefels 2006}) 9. e3 {[%emt 0:00:15]} Nc6 {[%emt 0:00:15]} 10. Nc5 {[%emt 0:00:15]} Be7 {[%emt 0:00:15]} 11. Be2 {[%emt 0:00:15]} O-O {[%emt 0:00:15]} 12. O-O {[%emt 0:00:15]} b6 {[%emt 0:00:15]} 13. N5a4 {[%emt 0:00:15]} Be6 {[%emt 0:00:15]} 14. Rc1 {[%emt 0:00:15][%cal Oc3e4]} Na5 {[%emt 0:00:15]} 15. b3 {[%emt 0:00:15]} Nb7 {[%emt 0:00:15]} 16. f3 {[%emt 0:00:15]} (16. Nb1 $11 {remains equal.}) 16... b5 $17 {[%emt 0:00:15]} 17. Nc5 {[%emt 0:00:15]} Nxc5 {[%emt 0:00:15]} 18. dxc5 {[%emt 0:00:15]} Bxc5 {[%emt 0:00:15] And now ...g5 would win.} 19. Nxb5 {[%emt 0:00:15]} Bxe3+ {[%emt 0:00:15]} (19... axb5 {is interesting.} 20. Rxc5 Rxa2 21. Rxb5 Qe7) 20. Bxe3 {[%emt 0:00:15] Strongly threatening Nc7.} axb5 {[%emt 0:00:15]} 21. Bxb5 {[%emt 0:00:15]} exf3 {[%emt 0:00:15]} 22. Qxf3 {[%emt 0:00:15]} d4 {[%emt 0:00:15]} 23. Bxh6 {[%emt 0:00:15][%cal Oc1c2]} Bd5 {[%emt 0:00:15]} 24. Qg3 {[%emt 0:00:15][%csl Gh6][%cal Rg3g7]} Nh5 {[%emt 0:00:15]} 25. Qe5 {[%emt 0:00:15][%mdl 8192] [#]} (25. Qg5 $11 {and White has nothing to worry.} Rxa2 26. Rf2 (26. Qxh5 {leads to mate.} Rxg2+ 27. Kh1 Rg4+) 26... Rxf2 27. Kxf2) 25... Rxa2 $1 $19 {[%emt 0:00:15]} 26. Rf2 {[%emt 0:00:15]} Rxf2 {[%emt 0:00:15]} 27. Kxf2 {[%emt 0:00:15] [#]} Qf6+ $2 {[%emt 0:00:15]} ({Inferior is} 27... gxh6 28. Qxh5 Qf6+ 29. Kg1 Bxb3 30. Qg4+ Qg7 31. Qf4 $15) (27... Nf6 $1 $19 {[%cal Rf6g4]} 28. Qxd4 gxh6) 28. Qxf6 $11 {[%emt 0:00:15] Active counter play!} Nxf6 {[%emt 0:00:15]} 29. Bf4 {[%emt 0:00:15]} Bxb3 {[%emt 0:00:15][%cal Og7g5]} 30. Bc4 {[%emt 0:00:15] A strong pair of Bishops.} Ba4 {[%emt 0:00:15]} 31. Ke2 {[%emt 0:00:15]} Rd8 {[%emt 0:00:15]} 32. h3 {[%emt 0:00:15]} Bc6 {[%emt 0:00:15]} 33. Bxf7+ {[%emt 0:00:15] The position is equal.} Kxf7 {[%emt 0:00:15]} 34. Rxc6 {[%emt 0:00:15]} d3+ {[%emt 0:00:15]} 35. Kd1 $1 {[%emt 0:00:15]} Ra8 {[%emt 0:00:15]} 36. Kd2 {[%emt 0:00:15]} Ra3 {[%emt 0:00:15]} 37. Rc4 {[%emt 0:00:15]} Ra2+ {[%emt 0:00:00] Weighted Error Value: White=0.25 (precise) /Black=0.18 (very precise)} 1/2-1/2

[Event "14th BPB Limburg Open 2022"]
[Site "Maastricht"]
[Date "2022.06.05"]
[Round "5.14"]
[White "Nemegeer, Arne"]
[Black "De Rover, Yong Hoon"]
[Result "1-0"]
[ECO "B51"]
[WhiteElo "2149"]
[BlackElo "2365"]
[Annotator "TA"]
[PlyCount "67"]
[EventDate "2022.06.03"]
[EventType "swiss"]
[EventCountry "NED"]
[SourceTitle "playchess.com"]
[Source "ChessBase"]
[SourceQuality "1"]
[TimeControl "7200+15"]

{[%evp 9,67,18,18,7,22,21,49,47,55,51,47,50,77,43,68,67,69,31,22,25,51,32,42,32,39,36,52,27,42,42,91,95,78,87,90,78,84,77,110,123,155,138,129,83,69,0,0,0,180,178,381,83,83,77,257,260,735,137,677,666]} 1. e4 {[%emt 2:00:30]} c5 {[%emt 2:00:30]} 2. Nf3 {[%emt 0:00:15]} d6 {[%emt 0:00:15]} 3. Bb5+ {[%emt 0:00:15]} Nd7 {[%emt 0:00:15]} 4. O-O {[%emt 0:00:15]} a6 {[%emt 0:00:15]} 5. Bd3 {[%emt 0:00:15]} Ngf6 {[%emt 0:00:15]} 6. Re1 {[%emt 0:00:15] B51: Sicilian: Moscow Variation (3 Bb5+) without 3...Bd7.} b5 {[%emt 0:00:15]} 7. c4 {[%emt 0:00:15]} b4 {[%emt 0:00:15]} 8. a3 {[%emt 0:00:15] White is slightly better.} bxa3 {[%emt 0:00:15]} 9. Rxa3 {[%emt 0:00:15]} e5 {[%emt 0:00:15]} 10. Bc2 {[%emt 0:00:15]} g6 {[%emt 0:00:15] [#]} 11. Nc3 $146 {[%emt 0:00:15]} ({Predecessor:} 11. Ba4 Bg7 12. Bc6 Rb8 13. Nc3 O-O 14. Nd5 Nxd5 15. Bxd5 Nb6 16. d3 h6 17. Bd2 Nxd5 18. cxd5 {½-½ (45) Mahjoob,M (2392)-Tarlev,K (2557) Rasht 2015}) 11... Bg7 {[%emt 0:00:15]} 12. d3 {[%emt 0:00:15]} O-O {[%emt 0:00:15]} 13. Nd2 {[%emt 0:00:15]} Nb8 {[%emt 0:00:15]} 14. Ba4 {[%emt 0:00:15]} (14. Nd5 {looks sharper.} Nc6 15. Ba4 Nb4 16. Nb3) 14... Bd7 {[%emt 0:00:15]} 15. Bxd7 {[%emt 0:00:15]} (15. Nf3 {with more complications.} Nc6 16. Bg5 Nb4 17. Nd5) 15... Nfxd7 {[%emt 0:00:15]} 16. Nf1 {[%emt 0:00:15]} Nc6 {[%emt 0:00:15]} 17. Ne3 {[%emt 0:00:15]} Nb6 {[%emt 0:00:15]} 18. Ned5 {[%emt 0:00:15]} Nxd5 {[%emt 0:00:15]} 19. Nxd5 {[%emt 0:00:15]} f5 {[%emt 0:00:15]} (19... a5 $14 {deserves consideration.}) 20. Qa4 {[%emt 0:00:15]} Nd4 {[%emt 0:00:15]} 21. Be3 {[%emt 0:00:15]} fxe4 {[%emt 0:00:15]} 22. Bxd4 {[%emt 0:00:15]} exd4 {[%emt 0:00:15]} 23. Rxe4 {[%emt 0:00:15]} Rf7 {[%emt 0:00:15]} 24. Ra1 {[%emt 0:00:15]} g5 {[%emt 0:00:15]} 25. Rae1 {[%emt 0:00:15]} Be5 {[%emt 0:00:15]} 26. g3 {[%emt 0:00:15]} ({White should try} 26. Qd1) 26... Qf8 {[%emt 0:00:15]} 27. f4 {[%emt 0:00:15]} (27. Rf1 $14) 27... gxf4 $11 {[%emt 0:00:15]} 28. gxf4 {[%emt 0:00:15]} Rg7+ $2 {[%emt 0:00:15]} (28... Bxf4 $11 29. Re8 Be3+ 30. R1xe3 Rf1+ 31. Kg2 dxe3 32. Rxf8+ Raxf8) 29. Kh1 $18 {[%emt 0:00:15] Black must now prevent Qd1. Active counter play!} Qf5 $2 {[%emt 0:00:15] [#]} (29... Rb8 {is a better defense.}) 30. Qc2 $2 {[%emt 0:00:15]} ({Worse is} 30. R4e2 Kh8 31. Qd1 {[#]} (31. Qc6 $2 Rag8 $19) 31... Rag8 $1 $11) (30. Qd1 $1 $18 {is the precise move to win.} Qg6 31. Qe2) 30... Bf6 $16 {[%emt 0:00:15]} 31. Qe2 {[%emt 0:00:15] Intending Re8+ and mate.} Kh8 $2 {[%emt 0:00:15]} (31... Bh4 $16) 32. Re8+ $18 {[%emt 0:00:15]} Rxe8 $2 {[%emt 0:00:15]} (32... Rg8 33. Rxa8 Rxa8) 33. Qxe8+ {[%emt 0:00:15]} Rg8 {[%emt 0:00:15]} 34. Qf7 {[%emt 0:00:15] Weighted Error Value: White=0.24 (precise) /Black=0.44} 1-0

[Event "14th BPB Limburg Open 2022"]
[Site "Maastricht"]
[Date "2022.06.06"]
[Round "6.1"]
[White "Donchenko, Alexander"]
[Black "Warmerdam, Max"]
[Result "1/2-1/2"]
[ECO "E68"]
[WhiteElo "2599"]
[BlackElo "2614"]
[Annotator "TA"]
[PlyCount "34"]
[EventDate "2022.06.03"]
[EventType "swiss"]
[EventCountry "NED"]
[SourceTitle "playchess.com"]
[Source "ChessBase"]
[SourceQuality "1"]
[TimeControl "7200+15"]

{[%evp 21,34,10,39,0,0,0,0,0,0,0,0,0,0,0,0]} 1. c4 {[%emt 0:00:03]} g6 {[%emt 0:00:32]} 2. g3 {[%emt 0:02:57]} Bg7 {[%emt 0:00:05]} 3. Bg2 {[%emt 0:00:06]} Nf6 {[%emt 0:00:06]} 4. Nc3 {[%emt 0:00:59]} O-O {[%emt 0:01:24]} 5. Nf3 {[%emt 0:01:45]} d6 {[%emt 0:01:19]} 6. d4 {[%emt 0:02:40]} Nbd7 {[%emt 0:02:39]} 7. O-O {[%emt 0:00:50]} e5 {[%emt 0:00:26]} 8. e4 {[%emt 0:00:43]} exd4 {[%emt 0:00:40]} 9. Nxd4 {[%emt 0:00:08]} Nc5 {[%emt 0:00:35]} 10. h3 {[%emt 0:02:54]} Re8 {[%emt 0:00:11]} 11. Re1 {[%emt 0:00:36]} h6 {[%emt 0:00:07]} 12. Qc2 {[%emt 0:17:27] E68: King's Indian: Fianchetto: 6...Nbd7 7 0-0 e5 8 e4.} (12. Nb3 {keeps more tension.} Nfd7 13. Be3 h5 14. Nxc5 Bxc3 15. bxc3 Nxc5 16. Bd4) 12... Nfxe4 $1 {[%emt 0:00:37] The position is equal.} 13. Nxe4 {[%emt 0:00:38] [#] Hoping for Be3.} Bxd4 {[%emt 0:00:10]} 14. Bxh6 {[%emt 0:01:36] And now Bg5 would win.} Nxe4 {[%emt 0:00:06]} 15. Rxe4 {[%emt 0:04:29] [#]} Rxe4 $146 {[%emt 0:00:38]} ({Predecessor:} 15... Bf5 16. Rxe8+ Qxe8 17. Qd2 c5 18. Re1 Qd7 19. g4 Be6 20. b3 d5 21. cxd5 Bxd5 22. Bxd5 Qxd5 {0-1 (27) Pimankin,S (2103)-Ryabov,S (2221) Novosibirsk 2002}) 16. Qxe4 {[%emt 0:00:10]} ({Much worse is} 16. Bxe4 Bxh3 17. Bxg6 (17. Rd1 Qf6 $17) 17... Qf6 18. Bh7+ Kh8 $15) 16... Bxb2 {[%emt 0:00:05]} 17. Re1 {[%emt 0:04:25]} Be5 {[%emt 0:00:21] An interesting draw.  Weighted Error Value: White=0.12 (very precise) /Black=0.06 (flawless)} 1/2-1/2

[Event "14th BPB Limburg Open 2022"]
[Site "Maastricht"]
[Date "2022.06.06"]
[Round "6.2"]
[White "Ernst, Sipke"]
[Black "Van Foreest, Lucas"]
[Result "0-1"]
[ECO "C55"]
[WhiteElo "2547"]
[BlackElo "2572"]
[Annotator "TA"]
[PlyCount "62"]
[EventDate "2022.06.03"]
[EventType "swiss"]
[EventCountry "NED"]
[SourceTitle "playchess.com"]
[Source "ChessBase"]
[SourceQuality "1"]
[TimeControl "7200+15"]

{[%evp 9,62,21,37,20,45,31,23,33,45,36,58,52,54,62,66,50,45,56,65,48,127,86,81,79,88,66,61,76,90,72,74,48,29,31,44,0,75,-12,39,39,39,39,37,27,43,39,39,40,40,40,41,0,0,-433,-422]} 1. e4 {[%emt 0:00:01]} e5 {[%emt 0:02:44]} 2. Nf3 {[%emt 0:01:16]} Nc6 {[%emt 0:00:06]} 3. Bc4 {[%emt 0:00:03]} Nf6 {[%emt 0:00:07][%cal Bg8f6,Bf6d5,Bd5b6,Bb6d7,Bd7c5][%mdl 32]} 4. d3 {[%emt 0:00:05]} Be7 {[%emt 0:00:42]} 5. a4 {[%emt 0:02:16][%cal Ba2a4,Ba4a5][%mdl 32]} O-O {[%emt 0:00:47]} 6. h3 {[%emt 0:03:20] C55: Two Knights: 4 d3, 4 d4 exd4 5 e5 and Max Lange Attack.} d5 {[%emt 0:00:04]} 7. exd5 {[%emt 0:00:05]} Nxd5 {[%emt 0:00:04]} 8. O-O {[%emt 0:00:14] White has an edge.} Nb6 $5 {[%emt 0:12:12][%mdl 4] An interesting side line.} 9. Bb3 {[%emt 0:05:42] [#]} Bf5 $146 {[%emt 0:00:09]} ({Predecessor:} 9... a5 10. Re1 Nd4 11. Nxd4 exd4 12. Qh5 Nd7 13. Bf4 Nc5 14. Bc4 Be6 15. Nd2 Bd6 16. Bxd6 Qxd6 17. Bxe6 Nxe6 {1-0 (43) Aravindh,C (2584)-Sriram,J (2393) Jammu 2018}) 10. a5 {[%emt 0:02:39]} Nd7 {[%emt 0:01:13]} 11. a6 {[%emt 0:02:03]} Nc5 $1 {[%emt 0:00:05]} 12. axb7 {[%emt 0:05:56]} Rb8 {[%emt 0:00:05]} 13. Bc4 {[%emt 0:10:26]} Rxb7 {[%emt 0:04:35]} 14. Nc3 {[%emt 0:02:22]} Rb8 {[%emt 0:06:59]} ({Better is} 14... Be6 $1 $14) 15. Be3 {[%emt 0:06:18]} Bd6 {[%emt 0:06:40]} (15... Rxb2 $2 16. Bxc5 Bxc5 17. Na4 $18) 16. Re1 {[%emt 0:07:54]} Ne6 {[%emt 0:00:48]} (16... Rxb2 $2 17. Bxc5 Bxc5 18. Na4 (18. Nxe5 Bxf2+ 19. Kh1 Nxe5 $15) 18... Bxf2+ 19. Kxf2 $18) 17. Ra6 {[%emt 0:07:24]} Ned4 {[%emt 0:05:23]} 18. Bxd4 {[%emt 0:06:08]} Nxd4 {[%emt 0:02:39]} 19. Nxd4 {[%emt 0:03:20]} ({Resist} 19. Rxa7 Rxb2 20. Nxd4 exd4 $14) 19... exd4 {[%emt 0:00:04]} 20. Nb5 {[%emt 0:01:52]} Bb4 {[%emt 0:05:27]} 21. Re5 {[%emt 0:19:26]} Bc8 {[%emt 0:02:24]} 22. Ra4 {[%emt 0:07:29]} Bd6 {[%emt 0:03:14]} (22... Qf6 $11 23. Qh5 a5) 23. Rd5 {[%emt 0:07:07]} (23. Nxd6 $16 cxd6 24. Re1) 23... Rxb5 {[%emt 0:04:34]} 24. Rxb5 $14 {[%emt 0:00:48]} Bd7 {[%emt 0:00:21]} 25. Rba5 {[%emt 0:02:41] Ra1 is the strong threat.} ({Wrong is} 25. Rxa7 $2 Bxb5 26. Bxb5 Qb8 $19) 25... Bxa4 {[%emt 0:00:15]} 26. Rxa4 {[%emt 0:00:04]} Qf6 {[%emt 0:02:42]} 27. Rxa7 {[%emt 0:02:05]} Re8 {[%emt 0:01:53]} 28. g3 {[%emt 0:02:57]} g6 {[%emt 0:04:20][%cal Od6g3]} 29. Kg2 {[%emt 0:03:23]} Re5 {[%emt 0:00:23]} 30. Qd2 {[%emt 0:02:14]} Kg7 {[%emt 0:00:38]} 31. Ra5 $2 {[%emt 0:01:28][%mdl 8192] [#]} (31. Ra1 $11 {and White has nothing to worry.}) 31... Bb4 $1 {[%emt 0:01:12][%mdl 512] Weighted Error Value: White=0.45/Black=0.17 (very precise)} 0-1

[Event "14th BPB Limburg Open 2022"]
[Site "Maastricht"]
[Date "2022.06.06"]
[Round "6.3"]
[White "Dardha, Daniel"]
[Black "Kopylov, Daniel"]
[Result "1-0"]
[ECO "E60"]
[WhiteElo "2561"]
[BlackElo "2292"]
[Annotator "TA"]
[PlyCount "79"]
[EventDate "2022.06.03"]
[EventType "swiss"]
[EventCountry "NED"]
[SourceTitle "playchess.com"]
[Source "ChessBase"]
[SourceQuality "1"]
[TimeControl "7200+15"]

{[%evp 9,79,8,17,25,55,29,72,82,87,50,53,47,81,56,91,92,103,128,116,41,53,48,103,24,52,38,45,31,33,21,68,56,95,87,113,129,255,257,256,244,251,165,165,165,181,165,165,165,165,165,193,165,165,165,401,389,445,408,965,956,931,852,901,823,841,845,29971,29973,29966,29967,29970,29964]} 1. d4 {[%emt 0:00:06]} Nf6 {[%emt 0:03:14]} 2. c4 {[%emt 0:00:06]} g6 {[%emt 0:00:17]} 3. h4 {[%emt 0:00:08]} Bg7 {[%emt 0:01:02]} 4. Nc3 {[%emt 0:00:07]} d5 {[%emt 0:00:29]} 5. h5 {[%emt 0:00:13]} Nxh5 {[%emt 0:15:48]} 6. cxd5 {[%emt 0:05:56] E60: King's Indian: Unusual lines and Fianchetto Variation without Nc3.} c6 {[%emt 0:05:18]} 7. e4 {[%emt 0:00:40] Strongly threatening e5.} Nf6 {[%emt 0:06:58][%cal Rc6d5] [#]} 8. dxc6 $1 {[%emt 0:08:54] White is better.} bxc6 {[%emt 0:03:30][%cal Oe7e5]} 9. Bh6 {[%emt 0:03:06]} Bxh6 {[%emt 0:04:57]} 10. Rxh6 {[%emt 0:00:12]} Qa5 {[%emt 0:06:06]} 11. Qd2 {[%emt 0:02:34] [#]} Ba6 $146 {[%emt 0:02:20]} ({Predecessor:} 11... Nbd7 12. O-O-O Bb7 13. Kb1 Rd8 14. Be2 c5 15. d5 Ne5 16. Qg5 Nfd7 17. Qh4 Nf8 {1-0 (28) Daakshin,A (2016)-Navya,G (1483) Ahmedabad 2022}) 12. Nf3 {[%emt 0:04:36]} Bxf1 {[%emt 0:01:31]} 13. Kxf1 {[%emt 0:00:17]} Nbd7 {[%emt 0:00:16]} 14. g3 {[%emt 0:03:16]} (14. e5 $16 Nd5 15. Nxd5 Qxd5 16. Kg1) 14... Rd8 $14 {[%emt 0:08:42]} 15. Kg2 {[%emt 0:03:19]} Qb4 {[%emt 0:12:06]} (15... Ng4 $1 $14) 16. Qc2 {[%emt 0:13:45]} (16. e5 $16 Ng4 17. Rh4) 16... e5 $11 {[%emt 0:03:34]} 17. Rh4 $36 {[%emt 0:12:18][%mdl 2048] White has good play.} (17. Nxe5 Nxe5 18. dxe5 Ng4 $11) 17... Qe7 {[%emt 0:04:29]} (17... exd4 18. e5 Nd5 19. Nxd4 $18 (19. Rxd4 Qb6 $18)) 18. Ne2 {[%emt 0:05:27] Hoping for Qc3.} O-O {[%emt 0:03:38]} 19. Qxc6 {[%emt 0:07:46]} Rc8 {[%emt 0:02:47]} (19... exd4 $11 {is superior.} 20. Nexd4 Ne5) 20. Qa4 $14 {[%emt 0:01:10] White is more active.} exd4 {[%emt 0:05:46] Black is now going downhill.} 21. Qxd4 {[%emt 0:02:27]} (21. Nfxd4 Rfe8 $11) 21... Rc2 {[%emt 0:03:45] [#]} 22. Nc3 {[%emt 0:02:08][%cal Be2c3,Bc3d1,Bd1e3][%mdl 32] Black must now prevent e5.} Rb8 {[%emt 0:15:57]} (22... h5 $16 {was worth a try.}) 23. e5 $18 {[%emt 0:03:18]} Rbxb2 {[%emt 0:01:45]} 24. Nd1 {[%emt 0:00:44]} ({Weaker is} 24. exf6 Rxf2+ 25. Qxf2 Rxf2+ 26. Kxf2 Qc5+ 27. Rd4 Nxf6 $16) 24... Nxe5 {[%emt 0:04:38]} 25. Qxe5 {[%emt 0:04:27]} ({Worse is} 25. Nxb2 Nxf3 26. Kxf3 g5 $15) 25... Qxe5 {[%emt 0:00:07]} 26. Nxe5 {[%emt 0:00:04]} Rxa2 {[%emt 0:00:05]} 27. Ra4 {[%emt 0:04:26]} Rxa1 {[%emt 0:01:05]} 28. Rxa1 {[%emt 0:00:02]} Rc7 {[%emt 0:00:02]} 29. Ne3 {[%emt 0:00:18]} Kg7 {[%emt 0:01:07]} 30. Ra4 {[%emt 0:01:01]} h5 {[%emt 0:01:27]} 31. N3c4 {[%emt 0:01:18] Threatens to win with Nd6.} Nd7 $2 {[%emt 0:00:45] [#]} (31... Ne4 {is a better defense.} 32. Ne3 Nc5) 32. Nd6 $1 {[%emt 0:00:45] Ne8+ is the strong threat.} Nf6 {[%emt 0:03:45] Inhibits Ne8+.} (32... Kf8 33. Ndxf7) 33. Ndxf7 {[%emt 0:01:20]} Rxf7 {[%emt 0:00:02]} (33... Re7 $142 34. Kf3 g5) 34. Nxf7 {[%emt 0:00:10]} Kxf7 {[%emt 0:00:01]} 35. Rxa7+ {[%emt 0:00:09] KR-KN} Ke6 {[%emt 0:00:04]} 36. Kf3 {[%emt 0:00:14] White threatens Kf4 and mate.} Ng4 {[%emt 0:00:46]} 37. Ra4 {[%emt 0:00:53] Threatening mate with Rxg4.} Ne5+ {[%emt 0:00:52]} 38. Kf4 {[%emt 0:00:25] White mates.} Nd3+ {[%emt 0:00:07]} 39. Kg5 {[%emt 0:00:20]} Nxf2 {[%emt 0:00:22]} 40. Kxg6 {[%emt 0:00:19] Weighted Error Value: White=0.14 (very precise) /Black=0.48} 1-0

[Event "14th BPB Limburg Open 2022"]
[Site "Maastricht"]
[Date "2022.06.06"]
[Round "6.4"]
[White "Zwirs, Nico"]
[Black "Slagboom, Leandro"]
[Result "1-0"]
[ECO "E09"]
[WhiteElo "2468"]
[BlackElo "1997"]
[Annotator "TA"]
[PlyCount "105"]
[EventDate "2022.06.03"]
[EventType "swiss"]
[EventCountry "NED"]
[SourceTitle "playchess.com"]
[Source "ChessBase"]
[SourceQuality "1"]
[TimeControl "7200+15"]

{[%evp 17,105,28,38,25,28,16,25,24,25,10,28,26,41,35,31,24,41,32,44,36,104,92,92,92,151,64,68,8,8,7,12,8,21,0,0,0,0,0,0,-7,29,21,24,18,17,14,25,18,55,30,54,5,189,77,113,113,137,113,113,113,117,69,727,608,689,690,792,715,1395,1172,1081,759,2558,828,1909,590,29976,29977,29977,29978,29978,29978,29977,29978,29976,29977,29979,29980,29983,29984]} 1. c4 {[%emt 0:00:02]} e6 {[%emt 0:00:13]} 2. Nf3 {[%emt 0:00:58]} Nf6 {[%emt 0:01:58]} 3. g3 {[%emt 0:00:29]} d5 {[%emt 0:01:02]} 4. Bg2 {[%emt 0:01:16]} Be7 {[%emt 0:02:35]} 5. O-O {[%emt 0:00:26]} O-O {[%emt 0:00:05]} 6. d4 {[%emt 0:00:08]} c6 {[%emt 0:06:26]} 7. Nbd2 {[%emt 0:00:44]} Nbd7 {[%emt 0:00:38]} 8. Qc2 {[%emt 0:00:26]} b6 {[%emt 0:00:09]} 9. e4 {[%emt 0:01:35][%cal Be2e4,Be4e5][%mdl 32]} Ba6 {[%emt 0:00:27] 9...dxc4 gains popularity.} 10. e5 {[%emt 0:04:42] E09: Closed Catalan: Main Line: 7 Qc2 c6 8 Nbd2.} Ne8 {[%emt 0:00:43]} 11. Re1 {[%emt 0:00:25]} Rc8 {[%emt 0:04:51]} 12. cxd5 {[%emt 0:01:03] White has an edge.} cxd5 {[%emt 0:00:30]} 13. Qd1 {[%emt 0:05:37]} Qc7 {[%emt 0:03:03]} 14. Nf1 {[%emt 0:00:53]} Qc2 {[%emt 0:04:08]} 15. Qxc2 {[%emt 0:01:53]} Rxc2 {[%emt 0:00:03]} 16. Ne3 {[%emt 0:00:12] [#]} Rc6 $146 {[%emt 0:03:18]} ({Predecessor:} 16... Rc8 17. Bd2 Nc7 18. Rec1 Bb7 19. Ne1 f6 20. f4 fxe5 21. fxe5 Nb5 22. N1c2 Bg5 {1-0 (42) Miroshnichenko,E (2628)-Al Modiahki,M (2569) Dubai 2005}) 17. Bd2 {[%emt 0:00:11]} Nc7 {[%emt 0:02:38]} 18. a4 {[%emt 0:05:17]} Bd3 {[%emt 0:14:47]} (18... Nb8 $14) 19. Rec1 {[%emt 0:07:54]} Rxc1+ {[%emt 0:01:14]} 20. Rxc1 {[%emt 0:00:02]} Rc8 {[%emt 0:07:46] [#]} (20... Na8 $142) 21. Ne1 {[%emt 0:15:52]} (21. Nxd5 $1 $16 {[%mdl 512]} exd5 22. Bh3) 21... Ba6 $14 {[%emt 0:04:40]} 22. Bf1 {[%emt 0:00:10]} (22. b4 $14) 22... Bxf1 $11 {[%emt 0:08:07]} 23. Kxf1 {[%emt 0:00:13]} Kf8 {[%emt 0:02:11]} 24. Nd3 {[%emt 0:01:20]} Ke8 {[%emt 0:01:40]} 25. Ke2 {[%emt 0:06:36]} Nb8 {[%emt 0:04:45]} 26. Bb4 {[%emt 0:26:56]} Bxb4 {[%emt 0:01:19]} (26... Bd8 {looks sharper.} 27. Bd6 Kd7 28. Rc3 a5) 27. Nxb4 {[%emt 0:00:31]} Kd7 {[%emt 0:00:17]} 28. f4 {[%emt 0:06:49]} Nca6 {[%emt 0:06:09]} 29. Rxc8 {[%emt 0:03:00]} Kxc8 {[%emt 0:00:05]} 30. Nxa6 {[%emt 0:08:36]} Nxa6 {[%emt 0:00:06][%mdl 4096] Endgame KN-KN} 31. h4 {[%emt 0:00:10][%cal Bh2h4,Bh4h5][%mdl 32]} Nc7 {[%emt 0:17:09]} 32. h5 {[%emt 0:01:37][%cal Oh5h6]} Ne8 {[%emt 0:03:14]} 33. f5 {[%emt 0:02:22]} Kd7 {[%emt 0:06:36]} 34. Kf3 {[%emt 0:00:56]} (34. g4 $14 {feels stronger.}) 34... g6 $2 {[%emt 0:02:06]} (34... exf5 $11 35. Nxd5 g5) 35. g4 {[%emt 0:07:13]} (35. fxg6 $18 {and White stays clearly on top.} fxg6 36. h6) 35... gxf5 {[%emt 0:05:34]} 36. gxf5 {[%emt 0:00:17]} Ke7 {[%emt 0:00:31]} 37. f6+ {[%emt 0:02:39]} Kf8 {[%emt 0:00:40]} 38. Nc2 {[%emt 0:01:26] And now Nb4 would win. White is more active.} Nc7 {[%emt 0:02:42]} 39. Kf4 {[%emt 0:03:11]} ({Better is} 39. Ke3 $16) 39... Kg8 $2 {[%emt 0:01:08][%mdl 8192] [#]} (39... Na6 $14) 40. Nb4 $1 $18 {[%emt 0:00:17]} a5 {[%emt 0:00:49] [#]} 41. Nc6 {[%emt 0:00:25]} Kh8 {[%emt 0:01:05]} 42. b3 {[%emt 0:00:19]} Kg8 {[%emt 0:00:29]} 43. Ne7+ {[%emt 0:00:20]} Kh8 {[%emt 0:00:07]} 44. Ke3 {[%emt 0:02:06][%cal Ob3b4] aiming for b4!} h6 {[%emt 0:01:20]} 45. Kd3 {[%emt 0:00:21]} (45. b4 $142 Kh7 46. Kd2 axb4 47. Kc2) 45... Kh7 {[%emt 0:01:25]} 46. Kc3 {[%emt 0:00:41]} (46. b4 $142 {Kc3 would kill now.} Na6 47. Nc6 axb4 48. Ne7) 46... Kh8 {[%emt 0:00:22]} 47. b4 {[%emt 0:00:39] White mates.} Na6 {[%emt 0:00:23]} 48. bxa5 {[%emt 0:00:19]} bxa5 {[%emt 0:00:02]} 49. Nc6 {[%emt 0:00:02]} Kg8 {[%emt 0:00:13]} 50. Nxa5 {[%emt 0:00:01]} Kf8 {[%emt 0:00:01]} 51. Nb7 {[%emt 0:00:25]} Ke8 {[%emt 0:00:14]} 52. Nd6+ {[%emt 0:00:01]} Kf8 {[%emt 0:00:06]} 53. Kb3 {[%emt 0:00:05] Weighted Error Value: White=0.28 (precise) /Black=0.38} 1-0